bitfinex/quotes_BTCUSD_20250619
["timestamp","ask_amount","ask_price","bid_price","bid_amount"]
[1750296045225,3.81368179,104830.0,104820.0,0.2277]
[1750296045491,3.81368179,104830.0,104820.0,0.2264]
[1750296046671,3.81368179,104830.0,104820.0,0.1623]
[1750296047347,3.81368179,104830.0,104820.0,0.2283]
[1750296048463,3.81367725,104830.0,104820.0,0.2283]
[1750296049153,3.81367717,104830.0,104820.0,0.2283]
[1750296049397,3.8136766,104830.0,104820.0,0.2283]
[1750296050068,3.81367623,104830.0,104820.0,0.2283]
[1750296050729,3.81367572,104830.0,104820.0,0.2283]
[1750296050948,3.81367572,104830.0,104820.0,0.066]
[1750296051883,3.81367503,104830.0,104820.0,0.066]
[1750296053672,3.8314274,104830.0,104820.0,0.066]
[1750296053882,3.82255073,104830.0,104820.0,0.066]
[1750296054093,3.83142695,104830.0,104820.0,0.066]
[1750296054752,0.20034335,104820.0,104810.0,0.44332195]
[1750296055011,0.77770107,104820.0,104810.0,0.44332195]
[1750296055266,1.12810937,104820.0,104810.0,0.0614]
[1750296055504,4.11341946,104820.0,104810.0,0.16254]
[1750296055709,4.24864304,104820.0,104810.0,0.0001]
[1750296055932,4.30384652,104820.0,104810.0,0.0021]
[1750296056154,4.29497216,104820.0,104810.0,0.0041]
[1750296056409,4.30384236,104820.0,104810.0,0.0041]
[1750296056627,4.30383146,104820.0,104810.0,0.0021]
[1750296056863,4.30483136,104820.0,104810.0,0.0021]
[1750296057124,4.24383136,104820.0,104810.0,0.0001]
[1750296057336,4.23717884,104820.0,104810.0,0.0001]
[1750296057553,4.24017884,104820.0,104810.0,0.0001]
[1750296057969,4.22243888,104820.0,104810.0,0.0001]
[1750296058395,4.24496868,104820.0,104810.0,0.0001]
[1750296059262,4.21356868,104820.0,104810.0,0.0001]
[1750296059677,4.21356868,104820.0,104810.0,0.0316]
[1750296059915,4.21356868,104820.0,104810.0,0.0619]
[1750296060562,4.24013978,104820.0,104810.0,0.0619]
[1750296060816,3.02628949,104820.0,104810.0,0.64667651]
[1750296061044,0.004,104820.0,104810.0,0.90527827]
[1750296061698,0.30627417,104840.0,104830.0,0.21940174]
[1750296061911,0.30627417,104840.0,104830.0,0.28400174]
[1750296062133,0.65581215,104840.0,104830.0,0.44632174]
[1750296062341,0.31581215,104840.0,104830.0,0.44632174]
[1750296062556,0.65581224,104840.0,104830.0,0.44632174]
[1750296062777,0.54,104840.0,104830.0,0.83124236]
[1750296062996,0.34,104840.0,104830.0,0.83124236]
[1750296063216,0.34,104840.0,104830.0,0.5425635]
[1750296064337,0.342,104840.0,104830.0,0.5425635]
[1750296064569,0.343,104840.0,104830.0,0.5425635]
[1750296064995,0.001,104840.0,104830.0,0.90775256]
[1750296065213,0.001,104840.0,104830.0,0.92229341]
[1750296066071,3.68237142,104870.0,104860.0,0.28323923]
[1750296066285,3.62859636,104870.0,104860.0,0.29277511]
[1750296066544,3.64766685,104870.0,104860.0,0.29277511]
[1750296066755,3.64766758,104870.0,104860.0,0.28323923]
[1750296067166,3.65781129,104870.0,104860.0,0.28323923]
[1750296067377,3.64827568,104870.0,104860.0,0.29277511]
[1750296068019,3.64826975,104870.0,104860.0,0.27370326]
[1750296068244,3.81991165,104870.0,104860.0,0.27370344]
[1750296068499,3.81105443,104870.0,104860.0,0.28323978]
[1750296068719,3.81990668,104870.0,104860.0,0.28323978]
[1750296068942,3.81990668,104870.0,104860.0,0.29277594]
[1750296069161,3.81105443,104870.0,104860.0,0.28323978]
[1750296069382,3.81105443,104870.0,104860.0,0.28423978]
[1750296069832,3.81105443,104870.0,104860.0,0.29377603]
[1750296070038,3.81990605,104870.0,104860.0,0.29377603]
[1750296070884,3.81105443,104870.0,104860.0,0.29377603]
[1750296071108,3.81105443,104870.0,104860.0,0.27470344]
[1750296071318,3.801519,104870.0,104860.0,0.27470344]
[1750296071532,3.801519,104870.0,104860.0,0.28423978]
[1750296073349,3.801519,104870.0,104860.0,0.30331219]
[1750296073571,3.801519,104870.0,104860.0,0.30331119]
[1750296073572,0.02921301,104870.0,104860.0,0.30331119]
[1750296073783,0.36921301,104870.0,104860.0,0.30331119]
[1750296075638,0.01014316,104870.0,104860.0,0.39955295]
[1750296075857,0.35911804,104880.0,104870.0,0.21931805]
[1750296076085,0.36865229,104880.0,104870.0,0.44289805]
[1750296076709,0.3686521,104880.0,104870.0,0.44289805]
[1750296077123,0.65718711,104880.0,104870.0,0.44289805]
[1750296077361,0.64765286,104880.0,104870.0,0.44289805]
[1750296077580,0.65718702,104880.0,104870.0,0.44289805]
[1750296077789,0.36865201,104880.0,104870.0,0.44289805]
[1750296078214,0.38772078,104880.0,104870.0,0.44289805]
[1750296078426,0.37818626,104880.0,104870.0,0.44289805]
[1750296078637,0.36865201,104880.0,104870.0,0.44289805]
[1750296079055,0.35911785,104880.0,104870.0,0.44289805]
[1750296079274,0.34005,104880.0,104870.0,0.44289805]
[1750296079938,0.35019107,104880.0,104870.0,0.44289805]
[1750296080149,5e-05,104880.0,104870.0,0.82767482]
[1750296080348,5e-05,104880.0,104870.0,0.53913981]
[1750296082964,5e-05,104880.0,104870.0,0.82767482]
[1750296084265,5e-05,104880.0,104870.0,0.53913981]
[1750296084472,5e-05,104880.0,104870.0,0.82767482]
[1750296084897,5e-05,104880.0,104870.0,0.53913981]
[1750296087877,0.30765295,104880.0,104870.0,0.53893981]
[1750296088085,5e-05,104880.0,104870.0,0.53893981]
[1750296091699,5e-05,104880.0,104870.0,0.82747482]
[1750296092552,0.01837261,104890.0,104880.0,0.21929713]
[1750296092759,0.01837261,104890.0,104880.0,0.38063889]
[1750296092990,0.0374392,104890.0,104880.0,0.38063889]
[1750296093198,0.04697281,104890.0,104880.0,0.38063889]
[1750296093406,0.23764875,104890.0,104880.0,0.35203588]
[1750296093619,0.53625133,104890.0,104880.0,0.27486316]
[1750296093843,0.53625133,104890.0,104880.0,0.40412316]
[1750296094046,0.34657539,104890.0,104880.0,0.44695741]
[1750296094299,0.34657539,104890.0,104880.0,0.45649147]
[1750296094515,0.67604169,104890.0,104880.0,0.45649147]
[1750296094722,0.68557539,104890.0,104880.0,0.45649147]
[1750296094930,0.69510918,104890.0,104880.0,0.44695741]
[1750296095168,0.69310918,104890.0,104880.0,0.45649157]
[1750296095378,0.69310918,104890.0,104880.0,0.46602563]
[1750296095581,0.69310918,104890.0,104880.0,0.45649157]
[1750296095783,0.88378512,104890.0,104880.0,0.27566316]
[1750296095984,0.68357539,104890.0,104880.0,0.38105732]
[1750296096191,0.67484134,104890.0,104880.0,0.21929732]
[1750296096410,0.68437513,104890.0,104880.0,0.38101732]
[1750296096612,0.87505107,104890.0,104880.0,0.20022873]
[1750296096868,0.02860292,104880.0,104870.0,0.29105293]
[1750296097069,0.58653889,104880.0,104870.0,0.20978308]
[1750296097290,0.00953497,104870.0,104860.0,0.27060271]
[1750296097519,0.32531265,104870.0,104860.0,0.44185859]
[1750296097735,0.51602496,104870.0,104860.0,0.4323229]
[1750296097959,0.33484735,104870.0,104860.0,0.44185878]
[1750296098381,0.33484726,104870.0,104860.0,0.44185878]
[1750296098799,0.05584759,104870.0,104860.0,0.44185878]
[1750296099034,0.34438729,104870.0,104860.0,0.44185878]
[1750296099244,0.34438729,104870.0,104860.0,0.44385878]
[1750296099881,0.34438729,104870.0,104860.0,0.44585878]
[1750296100086,0.33485195,104870.0,104860.0,0.44585878]
[1750296100306,0.33485759,104870.0,104860.0,0.44585878]
[1750296100511,0.03678742,104870.0,104860.0,0.44585878]
[1750296100953,0.03678733,104870.0,104860.0,0.44585878]
[1750296101393,0.05585773,104870.0,104860.0,0.28413878]
[1750296101622,0.35392817,104870.0,104860.0,0.28413878]
[1750296101830,0.35392817,104870.0,104860.0,0.44581878]
[1750296102084,0.35393249,104870.0,104860.0,0.44581878]
[1750296102296,0.34439706,104870.0,104860.0,0.44581878]
[1750296103165,0.34439697,104870.0,104860.0,0.44581878]
[1750296104001,0.3539324,104870.0,104860.0,0.44581878]
[1750296104228,0.88464553,104870.0,104860.0,0.28413933]
[1750296104464,0.69393322,104870.0,104860.0,0.45531521]
[1750296104683,0.68439761,104870.0,104860.0,0.45531521]
[1750296104903,0.69394179,104870.0,104860.0,0.45531521]
[1750296105105,0.68440627,104870.0,104860.0,0.45531521]
[1750296105730,0.69327587,104870.0,104860.0,0.45531521]
[1750296105944,0.67621124,104870.0,104860.0,0.45531521]
[1750296106158,0.70282005,104870.0,104860.0,0.45531521]
[1750296106849,0.88399739,104870.0,104860.0,0.20426701]
[1750296107104,0.87446233,104870.0,104860.0,0.37540344]
[1750296107535,0.86492708,104870.0,104860.0,0.37540344]
[1750296107750,0.84652127,104870.0,104860.0,0.36586701]
[1750296107956,0.85539048,104870.0,104860.0,0.36586701]
[1750296108814,0.85539048,104870.0,104860.0,0.37540335]
[1750296109022,0.85539048,104870.0,104860.0,0.3849396]
[1750296109232,0.67421342,104870.0,104860.0,0.39447576]
[1750296109447,0.67421342,104870.0,104860.0,0.40401128]
[1750296109679,0.67421342,104870.0,104860.0,0.38493897]
[1750296109891,0.87446134,104870.0,104860.0,0.3754029]
[1750296110109,0.87446134,104870.0,104860.0,0.37540335]
[1750296110315,0.87446134,104870.0,104860.0,0.3849396]
[1750296110730,0.87445053,104870.0,104860.0,0.3849396]
[1750296110908,3.83704353,104870.0,104860.0,0.3849396]
[1750296111118,3.83704353,104870.0,104860.0,0.39447576]
[1750296111735,3.82750828,104870.0,104860.0,0.37540335]
[1750296112147,3.82750828,104870.0,104860.0,0.3849396]
[1750296113106,3.82750828,104870.0,104860.0,0.39447576]
[1750296113780,3.82750828,104870.0,104860.0,0.42856701]
[1750296114005,3.82750828,104870.0,104860.0,0.43810344]
[1750296114608,3.80977706,104870.0,104860.0,0.23783652]
[1750296114801,3.80843077,104870.0,104860.0,0.23783652]
[1750296115015,3.80843077,104870.0,104860.0,0.20693652]
[1750296115221,3.80843077,104870.0,104860.0,0.1974]
[1750296115423,3.80843077,104870.0,104860.0,0.16552]
[1750296116286,3.80843045,104870.0,104860.0,0.16552]
[1750296116711,3.80843045,104870.0,104860.0,0.17505652]
[1750296117362,3.80843045,104870.0,104860.0,0.23785652]
[1750296117778,3.51989544,104870.0,104860.0,0.4476596]
[1750296117997,3.33871801,104870.0,104860.0,0.46673164]
[1750296118265,0.37747071,104870.0,104860.0,0.46673164]
[1750296118693,0.36860501,104870.0,104860.0,0.46673164]
[1750296119218,0.37814026,104870.0,104860.0,0.46673164]
[1750296119466,0.36860501,104870.0,104860.0,0.46673164]
[1750296119677,0.37814035,104870.0,104860.0,0.46673164]
[1750296120106,0.38767578,104870.0,104860.0,0.46673164]
[1750296120346,0.36860501,104870.0,104860.0,0.46673164]
[1750296120578,0.37814026,104870.0,104860.0,0.46673164]
[1750296120807,0.38767569,104870.0,104860.0,0.46673164]
[1750296121310,0.37814026,104870.0,104860.0,0.46673164]
[1750296121530,0.34,104870.0,104860.0,0.5629734]
[1750296121739,0.54,104870.0,104860.0,0.5629734]
[1750296121948,0.54953479,104870.0,104860.0,0.5629734]
[1750296122414,3.162593,104870.0,104860.0,0.5629734]
[1750296122622,2.962593,104870.0,104860.0,0.5629734]
[1750296123044,2.962593,104880.0,104860.0,0.81336314]
[1750296123264,0.34887178,104880.0,104870.0,0.66679372]
[1750296123491,0.34,104880.0,104870.0,0.66679372]
[1750296123712,0.34,104880.0,104870.0,0.37825871]
[1750296124391,0.34953397,104880.0,104870.0,0.37825871]
[1750296124600,0.36860228,104880.0,104870.0,0.53965871]
[1750296124835,0.35906803,104880.0,104870.0,0.53965871]
[1750296125047,0.36860219,104880.0,104870.0,0.53965871]
[1750296125252,0.35906803,104880.0,104870.0,0.53965871]
[1750296125917,0.36860228,104880.0,104870.0,0.53965871]
[1750296126176,0.34953397,104880.0,104870.0,0.53965871]
[1750296126388,0.35906813,104880.0,104870.0,0.53965871]
[1750296126613,0.34953397,104880.0,104870.0,0.53965871]
[1750296126831,0.35906813,104880.0,104870.0,0.53965871]
[1750296127257,0.34953388,104880.0,104870.0,0.53965871]
[1750296127702,0.34,104880.0,104870.0,0.53965871]
[1750296127904,0.34953388,104880.0,104870.0,0.53965871]
[1750296128113,0.35906785,104880.0,104870.0,0.53965871]
[1750296128529,0.36860201,104880.0,104870.0,0.53965871]
[1750296129164,0.35906785,104880.0,104870.0,0.53965871]
[1750296129687,0.36860201,104880.0,104870.0,0.53965871]
[1750296130186,0.38767096,104880.0,104870.0,0.36872429]
[1750296130424,0.67620597,104880.0,104870.0,0.53004429]
[1750296130635,0.38767096,104880.0,104870.0,0.53004429]
[1750296131111,0.37813644,104880.0,104870.0,0.53004429]
[1750296131598,0.38767078,104880.0,104870.0,0.53004429]
[1750296132579,0.38267078,104880.0,104870.0,0.53004429]
[1750296132580,0.38267069,104880.0,104870.0,0.53004429]
[1750296132819,0.37313626,104880.0,104870.0,0.53004429]
[1750296133052,0.03813626,104880.0,104870.0,0.53004429]
[1750296133254,0.04767069,104880.0,104870.0,0.53004429]
[1750296133513,0.03813626,104880.0,104870.0,0.53004429]
[1750296134348,0.03813672,104880.0,104870.0,0.53004429]
[1750296135206,0.01906813,104880.0,104870.0,0.53004429]
[1750296135430,0.01906803,104880.0,104870.0,0.53004429]
[1750296135641,0.02860237,104880.0,104870.0,0.53004429]
[1750296135855,0.03813689,104880.0,104870.0,0.53004429]
[1750296136068,0.01906803,104880.0,104870.0,0.53004429]
[1750296136919,0.34,104880.0,104870.0,0.53957908]
[1750296137128,0.34953388,104880.0,104870.0,0.53957908]
[1750296137811,0.35906785,104880.0,104870.0,0.53957908]
[1750296138458,0.34,104880.0,104870.0,0.53957908]
[1750296138665,0.51734494,104890.0,104880.0,0.28139741]
[1750296138916,0.52620994,104890.0,104880.0,0.28139741]
[1750296139118,0.32600021,104890.0,104880.0,0.29093147]
[1750296139747,0.51667615,104890.0,104880.0,0.28139759]
[1750296139962,0.51767615,104890.0,104880.0,0.28139759]
[1750296140622,0.51748544,104890.0,104880.0,0.28139759]
[1750296141462,0.49908728,104890.0,104880.0,0.28139759]
[1750296141689,0.50795345,104890.0,104880.0,0.28139759]
[1750296141898,0.50995345,104890.0,104880.0,0.28139759]
[1750296142083,0.50995345,104890.0,104880.0,0.0621]
[1750296142327,0.50061073,104890.0,104880.0,0.27186343]
[1750296142802,0.50061073,104890.0,104880.0,0.28139795]
[1750296143666,0.28997259,104890.0,104880.0,0.29093229]
[1750296143884,0.50061073,104890.0,104880.0,0.29093229]
[1750296144099,0.02139933,104890.0,104880.0,0.30046635]
[1750296144318,0.05000113,104890.0,104880.0,0.30046635]
[1750296144737,0.33853614,104890.0,104880.0,0.30046635]
[1750296144976,0.34806993,104890.0,104880.0,0.30046635]
[1750296145192,0.33853614,104890.0,104880.0,0.30046635]
[1750296145410,0.3194691,104890.0,104880.0,0.39670811]
[1750296145629,0.35186786,104890.0,104880.0,0.39670811]
[1750296145847,0.36140102,104890.0,104880.0,0.39670811]
[1750296146055,0.3804677,104890.0,104880.0,0.39670811]
[1750296146492,0.39000131,104890.0,104880.0,0.39670811]
[1750296146701,0.68807002,104890.0,104880.0,0.39670811]
[1750296146915,0.68807002,104890.0,104880.0,0.39670821]
[1750296147132,0.68807408,104890.0,104880.0,0.39670821]
[1750296147345,0.67854083,104890.0,104880.0,0.39670757]
[1750296147563,0.69629375,104890.0,104880.0,0.38717351]
[1750296147814,0.67722626,104890.0,104880.0,0.39670757]
[1750296148033,0.67722581,104890.0,104880.0,0.39670757]
[1750296148253,0.68675942,104890.0,104880.0,0.39670757]
[1750296148680,0.69629312,104890.0,104880.0,0.39670757]
[1750296148930,0.67722581,104890.0,104880.0,0.39670757]
[1750296149110,0.67722572,104890.0,104880.0,0.39670757]
[1750296149325,0.38869071,104890.0,104880.0,0.39670757]
[1750296149739,0.39822423,104890.0,104880.0,0.39670757]
[1750296149937,0.38869602,104890.0,104880.0,0.39670757]
[1750296150149,0.37916268,104890.0,104880.0,0.39670757]
[1750296150380,0.38869602,104890.0,104880.0,0.39670757]
[1750296150596,0.39822954,104890.0,104880.0,0.39670757]
[1750296151172,0.38869602,104890.0,104880.0,0.39670757]
[1750296151381,0.39822963,104890.0,104880.0,0.39670757]
[1750296152475,0.39822954,104890.0,104880.0,0.38717341]
[1750296152701,0.40776315,104890.0,104880.0,0.38717341]
[1750296152917,0.40777227,104890.0,104880.0,0.38717341]
[1750296153121,0.39823866,104890.0,104880.0,0.38717341]
[1750296153742,0.42098562,104890.0,104880.0,0.38717341]
[1750296153957,0.43051923,104890.0,104880.0,0.38717341]
[1750296154216,0.62119517,104890.0,104880.0,0.36810501]
[1750296154437,0.90973081,104890.0,104880.0,0.43286307]
[1750296154682,0.90019747,104890.0,104880.0,0.42332864]
[1750296154891,0.90019747,104890.0,104880.0,0.43286325]
[1750296155570,0.9002178,104890.0,104880.0,0.44239759]
[1750296155779,0.9002178,104890.0,104880.0,0.44239768]
[1750296156173,0.70954186,104890.0,104880.0,0.45193193]
[1750296157250,0.70954177,104890.0,104880.0,0.46146609]
[1750296158084,0.69176912,104890.0,104880.0,0.46146609]
[1750296158340,0.70954214,104890.0,104880.0,0.46146609]
[1750296158559,0.70954236,104890.0,104880.0,0.46146554]
[1750296158953,0.7000083,104890.0,104880.0,0.46146554]
[1750296159211,0.39240654,104890.0,104880.0,0.5577073]
[1750296159418,0.40193961,104890.0,104880.0,0.5577073]
[1750296159844,0.37919265,104890.0,104880.0,0.5577073]
[1750296160286,0.36965958,104890.0,104880.0,0.5577073]
[1750296160497,0.37919255,104890.0,104880.0,0.5577073]
[1750296161341,0.37919729,104890.0,104880.0,0.5577073]
[1750296161546,0.36966432,104890.0,104880.0,0.5577073]
[1750296161774,0.40195258,104890.0,104880.0,0.5577073]
[1750296161959,0.37919739,104890.0,104880.0,0.5577073]
[1750296162171,0.36966432,104890.0,104880.0,0.5577073]
[1750296162369,0.01188654,104890.0,104880.0,0.5577073]
[1750296162780,0.003,104890.0,104880.0,0.5577073]
[1750296163442,0.003,104890.0,104880.0,0.84624231]
[1750296166329,0.003,104890.0,104880.0,0.5577073]
[1750296170299,0.002,104890.0,104880.0,0.5577073]
[1750296170515,0.002,104890.0,104880.0,0.5597073]
[1750296170766,0.38779139,104900.0,104890.0,0.28337623]
[1750296171386,0.37825896,104900.0,104890.0,0.28337623]
[1750296172106,0.35919455,104900.0,104890.0,0.28337623]
[1750296172937,0.36872671,104900.0,104890.0,0.28337623]
[1750296173361,0.01919455,104900.0,104890.0,0.37961799]
[1750296173566,0.35031283,104900.0,104890.0,0.37961799]
[1750296174343,0.3598449,104900.0,104890.0,0.38161799]
[1750296174559,0.35031283,104900.0,104890.0,0.38161799]
[1750296175287,0.35031283,104900.0,104890.0,0.38361799]
[1750296179469,0.3598449,104900.0,104890.0,0.38361799]
[1750296179880,0.35031283,104900.0,104890.0,0.38361799]
[1750296180088,0.3598449,104900.0,104890.0,0.38361799]
[1750296180298,0.35031283,104900.0,104890.0,0.38361799]
[1750296181141,0.32666109,104910.0,104900.0,0.21925568]
[1750296181354,0.32666109,104910.0,104900.0,0.37993568]
[1750296181355,0.35329104,104910.0,104900.0,0.37993568]
[1750296181557,0.35329104,104910.0,104900.0,0.38946802]
[1750296181771,0.26475603,104910.0,104900.0,0.38946802]
[1750296181986,0.35329104,104910.0,104900.0,0.39900027]
[1750296182198,0.3444153,104910.0,104900.0,0.37040325]
[1750296182410,0.35329241,104910.0,104900.0,0.3894682]
[1750296182810,0.35329241,104910.0,104900.0,0.39900054]
[1750296183000,0.69329241,104910.0,104900.0,0.39900054]
[1750296183209,0.68376053,104910.0,104900.0,0.39900054]
[1750296183420,0.69329232,104910.0,104900.0,0.39899991]
[1750296183653,0.68376053,104910.0,104900.0,0.39899991]
[1750296183881,0.01897552,104910.0,104900.0,0.55644167]
[1750296184118,5e-05,104920.0,104910.0,0.28043442]
[1750296184348,5e-05,104920.0,104910.0,0.66521119]
[1750296184617,5e-05,104920.0,104910.0,0.37667618]
[1750296186381,0.00205,104920.0,104910.0,0.37667618]
[1750296186598,0.00305,104920.0,104910.0,0.37667618]
[1750296189365,0.01258025,104920.0,104910.0,0.37667618]
[1750296189602,0.00305,104920.0,104910.0,0.37667618]
[1750296190020,0.01258025,104920.0,104910.0,0.37667618]
[1750296190449,0.00305,104920.0,104910.0,0.37667618]
[1750296191337,0.04117263,104920.0,104910.0,0.37667636]
[1750296191550,0.04117235,104920.0,104910.0,0.3862077]
[1750296191770,0.32970727,104920.0,104910.0,0.5467677]
[1750296191988,0.31064578,104920.0,104910.0,0.5467677]
[1750296192237,0.02211068,104920.0,104910.0,0.5467677]
[1750296192676,0.00305,104920.0,104910.0,0.5467677]
[1750296192893,0.00952943,104930.0,104920.0,0.28261353]
[1750296193106,0.01905895,104930.0,104920.0,0.28261289]
[1750296193324,0.01905886,104930.0,104920.0,0.28261289]
[1750296194222,0.02858856,104930.0,104920.0,0.28261289]
[1750296194435,0.33065346,104930.0,104920.0,0.28261289]
[1750296194873,0.67265346,104930.0,104920.0,0.28261289]
[1750296195309,0.66312357,104930.0,104920.0,0.28261289]
[1750296195528,0.67318288,104930.0,104920.0,0.28261289]
[1750296196511,0.68271286,104930.0,104920.0,0.2730831]
[1750296196726,0.69224293,104930.0,104920.0,0.22874423]
[1750296196942,0.87331684,104930.0,104920.0,0.21921371]
[1750296197153,0.69224375,104930.0,104920.0,0.22874423]
[1750296197359,0.68624375,104930.0,104920.0,0.22874423]
[1750296197569,0.68624375,104930.0,104920.0,0.23074423]
[1750296197799,0.68624375,104930.0,104920.0,0.22221371]
[1750296198126,0.86731748,104930.0,104920.0,0.2126831]
[1750296198690,0.86731748,104930.0,104920.0,0.22221371]
[1750296198879,0.85778778,104930.0,104920.0,0.2126831]
[1750296200203,0.51778778,104930.0,104920.0,0.22221371]
[1750296200412,0.51778778,104930.0,104920.0,0.2126831]
[1750296200930,0.51778778,104930.0,104920.0,0.22221371]
[1750296201098,0.51778778,104930.0,104920.0,0.2126831]
[1750296201759,0.52665769,104930.0,104920.0,0.22221371]
[1750296202184,0.51712771,104930.0,104920.0,0.2126831]
[1750296202419,0.51712771,104930.0,104920.0,0.003]
[1750296202652,3.52366048,104930.0,104920.0,0.003]
[1750296202858,3.54139974,104930.0,104920.0,0.003]
[1750296205236,3.52366048,104930.0,104920.0,0.003]
[1750296205455,3.54140687,104930.0,104920.0,0.003]
[1750296205874,3.54140687,104930.0,104920.0,0.003]
[1750296207303,3.51061351,104930.0,104920.0,0.003]
[1750296207934,3.51061351,104930.0,104920.0,0.01253107]
[1750296208139,3.47841351,104930.0,104920.0,0.02206205]
[1750296209245,3.47841351,104930.0,104920.0,0.21268347]
[1750296209459,3.47841351,104930.0,104920.0,0.22221426]
[1750296209674,3.48794358,104930.0,104920.0,0.29514496]
[1750296209892,3.47019495,104930.0,104920.0,0.30467557]
[1750296210125,3.47019974,104930.0,104920.0,0.30467557]
[1750296210341,3.48796353,104930.0,104920.0,0.30467557]
[1750296210767,3.31641959,104930.0,104920.0,0.30467502]
[1750296210975,3.32594975,104930.0,104920.0,0.30467502]
[1750296211189,3.516553,104930.0,104920.0,0.2951445]
[1750296211412,3.50702348,104930.0,104920.0,0.2951445]
[1750296211856,3.49749369,104930.0,104920.0,0.28561389]
[1750296212060,3.48796362,104930.0,104920.0,0.27608319]
[1750296212780,3.48797258,104930.0,104920.0,0.2665524]
[1750296212979,3.48797258,104930.0,104920.0,0.27608328]
[1750296213529,3.48797258,104930.0,104920.0,0.28561407]
[1750296214447,3.47844242,104930.0,104920.0,0.27608328]
[1750296214684,0.03671116,104930.0,104920.0,0.29514441]
[1750296214895,0.02665185,104930.0,104920.0,0.29514441]
[1750296215104,0.0184174,104930.0,104920.0,0.29514441]
[1750296215984,0.00888806,104930.0,104920.0,0.29514441]
[1750296216201,0.66676065,104940.0,104930.0,0.21919263]
[1750296216202,0.34011,104940.0,104930.0,0.21919263]
[1750296216425,0.24586212,104940.0,104930.0,0.44207263]
[1750296216668,0.2268048,104940.0,104930.0,0.53831439]
[1750296216889,0.00011,104940.0,104930.0,0.8268494]
[1750296217101,0.00011,104940.0,104930.0,0.53831439]
[1750296217747,0.00111,104940.0,104930.0,0.53831439]
[1750296218168,0.00211,104940.0,104930.0,0.53831439]
[1750296222993,0.00211,104940.0,104930.0,0.8268494]
[1750296224300,0.00111,104940.0,104930.0,0.53831439]
[1750296224511,0.00111,104940.0,104930.0,0.8268494]
[1750296225160,0.00011,104940.0,104930.0,0.8268494]
[1750296225387,0.00011,104940.0,104930.0,0.8278494]
[1750296225601,0.00011,104940.0,104930.0,0.8288494]
[1750296227859,0.00011,104940.0,104930.0,0.54031439]
[1750296229428,0.00011,104940.0,104930.0,0.54031439]
[1750296237123,0.29817344,104940.0,104930.0,0.54003439]
[1750296237341,0.00011,104940.0,104930.0,0.54003439]
[1750296239571,0.00011,104940.0,104930.0,0.31743439]
[1750296239821,0.30770205,104940.0,104930.0,0.54079439]
[1750296240081,0.29817344,104940.0,104930.0,0.54079439]
[1750296240742,0.30770205,104940.0,104930.0,0.38083439]
[1750296240982,0.29817344,104940.0,104930.0,0.54079439]
[1750296241558,0.00963843,104940.0,104930.0,0.54079439]
[1750296241773,0.29817344,104940.0,104930.0,0.54079439]
[1750296242307,0.30770196,104940.0,104930.0,0.54079439]
[1750296243220,0.01916695,104940.0,104930.0,0.54079439]
[1750296244008,0.00963843,104940.0,104930.0,0.54079439]
[1750296245264,0.00011,104940.0,104930.0,0.54079439]
[1750296245719,0.00963852,104940.0,104930.0,0.54079439]
[1750296245937,0.01916713,104940.0,104930.0,0.54079439]
[1750296246369,0.29817353,104940.0,104930.0,0.54079439]
[1750296246797,0.30707794,104940.0,104930.0,0.54079439]
[1750296247277,0.31660655,104940.0,104930.0,0.54079439]
[1750296247479,0.30707785,104940.0,104930.0,0.54079439]
[1750296248136,0.31660637,104940.0,104930.0,0.54079439]
[1750296248378,0.30707785,104940.0,104930.0,0.54079439]
[1750296249213,0.31660646,104940.0,104930.0,0.54079439]
[1750296249437,0.30707785,104940.0,104930.0,0.54079439]
[1750296249904,0.01854284,104940.0,104930.0,0.54079439]
[1750296250109,0.00901441,104940.0,104930.0,0.54079439]
[1750296250316,0.01854284,104940.0,104930.0,0.54079439]
[1750296250530,0.00901441,104940.0,104930.0,0.54079439]
[1750296251018,0.00011,104940.0,104930.0,0.54079439]
[1750296252511,0.00963843,104940.0,104930.0,0.54079439]
[1750296252710,0.00011,104940.0,104930.0,0.54079439]
[1750296252923,0.2881712,104940.0,104930.0,0.54079439]
[1750296253131,0.29707561,104940.0,104930.0,0.54079439]
[1750296253339,0.14433326,104940.0,104930.0,0.54079439]
[1750296253989,0.14089142,104950.0,104940.0,0.21917175]
[1750296254192,0.44677895,104950.0,104940.0,0.21917175]
[1750296255367,0.63834588,104950.0,104940.0,0.20964314]
[1750296255575,0.63934588,104950.0,104940.0,0.21917194]
[1750296256460,0.62981817,104950.0,104940.0,0.21917194]
[1750296260346,0.01905805,104940.0,104930.0,0.27306311]
[1750296260555,0.31664796,104940.0,104930.0,0.44231263]
[1750296260767,0.53458863,104940.0,104930.0,0.44231281]
[1750296260977,0.5250547,104940.0,104930.0,0.44231281]
[1750296261846,0.5250547,104940.0,104930.0,0.44331281]
[1750296262071,0.50723359,104940.0,104930.0,0.44331281]
[1750296262288,0.50723359,104940.0,104930.0,0.44431281]
[1750296262764,0.50723359,104940.0,104930.0,0.45384242]
[1750296262972,0.52505507,104940.0,104930.0,0.45384242]
[1750296263578,0.23699387,104940.0,104930.0,0.45384242]
[1750296263827,0.23699387,104940.0,104930.0,0.36181332]
[1750296263828,0.52505507,104940.0,104930.0,0.36181332]
[1750296264037,0.52505553,104940.0,104930.0,0.36181332]
[1750296264247,0.52505553,104940.0,104930.0,0.38087319]
[1750296264463,0.51552655,104940.0,104930.0,0.38087319]
[1750296265699,0.51552655,104940.0,104930.0,0.39040298]
[1750296265925,0.52443507,104940.0,104930.0,0.39993259]
[1750296266132,0.52443507,104940.0,104930.0,0.39993268]
[1750296266997,0.51552169,104940.0,104930.0,0.39993268]
[1750296267210,0.52443023,104940.0,104930.0,0.39993222]
[1750296267431,0.23636903,104940.0,104930.0,0.39993222]
[1750296267691,0.52443023,104940.0,104930.0,0.39993222]
[1750296267916,0.52443023,104940.0,104930.0,0.39040261]
[1750296268139,0.52443023,104940.0,104930.0,0.37134312]
[1750296269855,0.52442892,104940.0,104930.0,0.37134312]
[1750296270070,0.52442892,104940.0,104930.0,0.38087282]
[1750296271268,0.81249012,104940.0,104930.0,0.002]
[1750296271497,0.83546105,104940.0,104930.0,0.002]
[1750296271708,0.83546105,104940.0,104930.0,0.1616]
[1750296272738,0.83545536,104940.0,104930.0,0.1616]
[1750296273242,0.80295536,104940.0,104930.0,0.1616]
[1750296273764,0.80295536,104940.0,104930.0,0.16156]
[1750296273966,0.83505536,104940.0,104930.0,0.16156]
[1750296274820,3.82844836,104940.0,104930.0,0.002]
[1750296275378,3.83511587,104940.0,104930.0,0.002]
[1750296276019,3.9125781,104940.0,104930.0,0.002]
[1750296276444,4.17511587,104940.0,104930.0,0.002]
[1750296276676,4.27135763,104940.0,104930.0,0.002]
[1750296276888,4.27135238,104940.0,104930.0,0.002]
[1750296277517,4.27135238,104940.0,104930.0,0.001]
[1750296277944,0.2192138,104920.0,104910.0,0.30770593]
[1750296278167,0.507275,104920.0,104910.0,0.14818593]
[1750296278381,0.507275,104920.0,104910.0,0.13865405]